bitfinex/quotes_ETHUSD_20220310
["timestamp","ask_amount","ask_price","bid_price","bid_amount"]
[1646917948020,0.99664903,2604.5,2604.3,0.01324927]
[1646917948220,0.04267683,2604.4,2604.3,0.01324927]
[1646917948421,1.46721522,2604.4,2604.3,0.01324927]
[1646917948719,0.04506374,2604.4,2604.3,0.01324927]
[1646917949320,1.46714014,2604.4,2604.3,0.01324927]
[1646917952265,0.04506374,2604.4,2604.3,0.01324927]
[1646917953470,1.46768357,2604.4,2604.3,0.01324927]
[1646917953770,1.46766059,2604.4,2604.3,0.01324927]
[1646917956623,2.41890745,2604.5,2604.3,0.01324927]
[1646917956925,0.99310902,2604.5,2604.3,0.01324927]
[1646917957221,0.99634248,2604.5,2604.3,0.01324927]
[1646917957420,0.9481157,2604.4,2604.3,0.01324927]
[1646917958026,2.41570587,2604.5,2604.3,0.01324927]
[1646917958224,2.41893933,2604.5,2604.3,0.01324927]
[1646917959073,2.41570587,2604.5,2604.3,0.01324927]
[1646917959475,5.9189393,2604.5,2604.3,0.01324927]
[1646917959671,2.4189393,2604.5,2604.3,0.01324927]
[1646917959873,2.4189393,2604.5,2604.3,0.0073695]
[1646917959874,1.42259685,2604.4,2604.3,0.0073695]
[1646917960172,2.4189393,2604.5,2604.3,0.0073695]
[1646917960373,2.41570587,2604.5,2604.3,0.0073695]
[1646917960573,0.99633719,2604.5,2604.3,0.0073695]
[1646917960773,0.94802644,2604.4,2604.3,0.0073695]
[1646917964025,2.41570587,2604.5,2604.3,0.0073695]
[1646917964223,2.41893489,2604.5,2604.3,0.0073695]
[1646917965025,2.41893489,2604.5,2604.3,0.01322034]
[1646917965224,2.41570587,2604.5,2604.3,0.01322034]
[1646917965423,2.41893486,2604.5,2604.3,0.01322034]
[1646917966474,2.41570587,2604.5,2604.3,0.01322034]
[1646917966671,2.41893486,2604.5,2604.3,0.01322034]
[1646917967675,2.41570587,2604.5,2604.3,0.01322034]
[1646917967874,2.41893473,2604.5,2604.3,0.01322034]
[1646917968677,1.42259685,2604.4,2604.3,0.01322034]
[1646917970225,2.41893475,2604.5,2604.3,0.01322034]
[1646917970623,1.42259685,2604.4,2604.3,0.01322034]
[1646917970824,0.9963379,2604.5,2604.3,0.01322034]
[1646917970825,2.41893475,2604.5,2604.3,0.01322034]
[1646917971023,1.42259685,2604.4,2604.3,0.01322034]
[1646917971824,2.41893477,2604.5,2604.3,0.01322034]
[1646917972225,1.42259685,2604.4,2604.3,0.01322034]
[1646917973429,1.42322751,2604.4,2604.3,0.01322034]
[1646917973628,0.9963379,2604.5,2604.3,0.01322034]
[1646917973629,0.99310902,2604.5,2604.3,0.01322034]
[1646917973870,0.99633792,2604.5,2604.3,0.01322034]
[1646917974167,2.88465122,2604.5,2604.3,0.01322034]
[1646917974770,3.88142232,2604.5,2604.3,0.01322034]
[1646917974971,2.88465119,2604.5,2604.3,0.00735514]
[1646917975167,3.88465119,2604.5,2604.3,0.01322034]
[1646917975367,1.99633789,2604.5,2604.3,0.01322034]
[1646917975567,3.88465119,2604.5,2604.3,0.01322034]
[1646917975973,3.5,2604.4,2604.3,0.01322034]
[1646917976469,4.5,2604.4,2604.3,0.01322034]
[1646917977271,1.553,2604.4,2604.3,0.01322034]
[1646917977720,2.45419984,2604.4,2604.3,0.01322034]
[1646917977923,3.89753776,2604.5,2604.3,0.01322034]
[1646917978122,2.89753776,2604.5,2604.3,0.01322034]
[1646917978324,1.42603606,2604.4,2604.3,0.01322034]
[1646917978621,1.46158396,2604.5,2604.3,0.01322034]
[1646917978820,0.00322888,2604.5,2604.3,0.01322034]
[1646917979522,0.96077,2604.6,2604.3,0.97399174]
[1646917979722,0.00184668,2604.5,2604.4,0.3]
[1646917979923,0.02987385,2604.5,2604.4,0.3]
[1646917980323,0.00184668,2604.5,2604.4,0.3]
[1646917980722,0.96077,2604.6,2604.4,0.3]
[1646917980924,1.1675,2604.8,2604.4,0.3]
[1646917981123,0.00184668,2604.6,2604.4,1.26073]
[1646917981971,1.90119984,2604.8,2604.4,1.26073]
[1646917982171,0.00366994,2604.6,2604.4,1.26073]
[1646917982373,0.96443994,2604.6,2604.4,1.26073]
[1646917983183,0.96077,2604.6,2604.4,1.26073]
[1646917983380,0.96077,2604.6,2604.4,0.96073]
[1646917983584,2.86563978,2604.6,2604.4,0.96073]
[1646917983880,1.90119984,2604.5,2604.4,0.96073]
[1646917985919,5.40119984,2604.5,2604.4,0.96073]
[1646917986119,6.40119984,2604.5,2604.4,0.96073]
[1646917986319,4.55084123,2604.5,2604.4,0.96073]
[1646917986520,4.74264123,2604.5,2604.4,0.96073]
[1646917987120,5.29564123,2604.5,2604.4,0.96073]
[1646917987522,5.438,2604.5,2604.4,0.96073]
[1646917987927,5.6298,2604.5,2604.4,0.96073]
[1646917988526,8.6298,2604.5,2604.2,3.16261045]
[1646917988781,1.53803,2604.4,2604.2,3.16261045]
[1646917988969,4.438,2604.3,2604.2,3.16261045]
[1646917989269,5.438,2604.3,2604.2,3.16261045]
[1646917989669,0.96126,2604.1,2603.6,0.00615375]
[1646917989869,1.92251,2604.2,2603.6,0.00615375]
[1646917989870,1.42553505,2603.8,2603.6,0.00615375]
[1646917990270,1.42553505,2603.8,2603.5,3.29478209]
[1646917990475,1.42553505,2603.8,2603.6,3.24826889]
[1646917991472,0.96125,2603.7,2603.6,3.24826889]
[1646917992528,4.46125,2603.7,2603.6,3.24826889]
[1646917992732,5.46125,2603.7,2603.6,3.24826889]
[1646917993631,6.88481062,2603.7,2603.6,3.24826889]
[1646917993832,5.46125,2603.7,2603.6,1.79930637]
[1646917995531,5.41125,2603.7,2603.6,1.79930637]
[1646917995735,6.83376986,2603.7,2603.6,1.79930637]
[1646917996772,5.41125,2603.7,2603.6,1.79930637]
[1646917997573,5.46044153,2603.7,2603.6,1.79930637]
[1646917997774,6.01344153,2603.7,2603.3,1.9225]
[1646917997972,6.01344153,2603.7,2603.5,0.00347566]
[1646917998173,7.80611513,2603.6,2603.5,0.00347566]
[1646917998380,8.80611513,2603.6,2603.5,0.00347566]
[1646917998777,8.80611513,2603.6,2603.3,1.9225]
[1646917998778,5.30611513,2603.6,2603.3,1.9225]
[1646917998973,1.90849236,2603.5,2603.3,1.9225]
[1646917999197,0.96115,2603.5,2603.4,0.00347571]
[1646917999774,0.97202369,2603.8,2603.4,0.00347571]
[1646918000026,0.96108,2603.7,2603.5,0.08610054]
[1646918000230,0.96108,2603.7,2603.6,0.01397456]
[1646918000928,1.90842236,2603.7,2603.6,0.01397456]
[1646918004084,0.96108,2603.7,2603.6,0.01397456]
[1646918005084,1.90842236,2603.7,2603.6,0.01397456]
[1646918005484,1.90842236,2603.7,2603.5,1.9255261]
[1646918006088,1.90842236,2603.7,2603.5,1.9222]
[1646918006285,1.90842236,2603.7,2603.5,1.92552612]
[1646918006486,0.94734236,2603.6,2603.5,1.92552612]
[1646918006686,1.90842236,2603.7,2603.5,1.92552612]
[1646918007287,1.90842236,2603.7,2603.5,1.9222]
[1646918007518,1.90842236,2603.7,2603.5,1.92552612]
[1646918008526,1.90842236,2603.7,2603.5,1.9222]
[1646918008726,1.90842236,2603.7,2603.5,1.92573114]
[1646918009724,0.96108,2603.7,2603.5,1.9222]
[1646918009925,0.96108,2603.7,2603.5,1.92573114]
[1646918010126,0.96108,2603.7,2603.6,0.01499487]
[1646918010328,0.02468133,2603.8,2603.6,0.08547707]
[1646918010729,0.96104,2604.0,2603.7,0.961]
[1646918010926,0.96104,2604.0,2603.9,0.08656548]
[1646918013783,2.86938236,2604.2,2603.9,0.08656548]
[1646918014097,1.90826236,2604.3,2604.0,0.08392276]
[1646918014282,0.94734236,2604.3,2604.0,0.08392276]
[1646918014484,0.94734236,2604.5,2604.0,0.08392276]
[1646918014881,0.00352624,2604.5,2604.0,0.08392276]
[1646918015121,0.94734236,2604.6,2604.0,0.08392276]
[1646918015521,0.94734236,2604.7,2604.1,0.9606141]
[1646918015721,0.94734236,2604.7,2604.3,0.07047794]
[1646918016122,0.94734236,2604.6,2604.3,0.07047794]
[1646918016522,2.61389513,2604.9,2604.3,0.07047794]
[1646918016523,1.90809236,2604.7,2604.3,0.07047794]
[1646918016727,1.90809236,2604.7,2604.4,0.38914944]
[1646918016924,0.94734236,2604.6,2604.4,0.38914944]
[1646918017123,0.94734236,2604.6,2604.4,0.3]
[1646918017326,0.94734236,2604.6,2604.3,2.22169]
[1646918017524,0.94734236,2604.5,2604.3,1.92169]
[1646918017729,0.94734236,2604.5,2604.3,5.25699704]
[1646918018329,2.92174,2604.6,2604.3,5.25699704]
[1646918018330,0.94734236,2604.4,2604.3,5.25699704]
[1646918018529,0.94734236,2604.4,2604.3,5.25058549]
[1646918018969,0.94734236,2604.5,2604.3,5.25058549]
[1646918019374,2.86928236,2604.5,2604.4,0.01485557]
[1646918019572,1.92194,2604.5,2604.4,0.01485557]
[1646918020272,6.84383513,2604.5,2604.4,0.00847533]
[1646918020770,8.39683513,2604.5,2604.4,0.00847533]
[1646918021070,4.89683513,2604.5,2604.4,0.00847533]
[1646918025533,4.89683513,2604.5,2604.3,1.91527845]
[1646918025733,1.42189513,2604.4,2604.3,1.91527845]
[1646918027177,4.34383513,2604.5,2604.3,1.91527845]
[1646918027373,3.34383513,2604.5,2604.3,1.91527845]
[1646918027578,4.34383513,2604.5,2604.3,1.91527845]
[1646918029081,1.90848355,2604.5,2604.3,1.91527845]
[1646918029280,1.90848355,2604.5,2604.3,1.9885023]
[1646918029480,0.94762355,2604.5,2604.3,1.91527845]
[1646918029684,0.95130674,2604.6,2604.4,1.03535435]
[1646918029883,0.95130674,2604.6,2604.4,0.96077]
[1646918030123,0.94762355,2604.6,2604.4,0.96077]
[1646918030324,0.95130674,2604.6,2604.4,0.96077]
[1646918031224,0.94762355,2604.6,2604.4,1.92154]
[1646918031426,0.95112622,2604.6,2604.4,1.92154]
[1646918032025,0.95112622,2604.6,2604.4,2.8822359]
[1646918032426,0.94762355,2604.6,2604.4,2.8822359]
[1646918032629,0.95112622,2604.6,2604.4,2.8822359]
[1646918033329,0.00350267,2604.6,2604.4,2.8822359]
[1646918033530,0.00350267,2604.6,2604.4,2.8820942]
[1646918033782,1.9007134,2605.2,2604.5,2.88158]
[1646918033783,0.94762355,2604.9,2604.5,2.88158]
[1646918033972,0.94762355,2605.0,2604.6,0.96054]
[1646918034172,0.94762355,2605.0,2604.7,1.92104]
[1646918034372,0.94762355,2605.0,2604.7,3.8421]
[1646918034974,0.94762355,2605.0,2604.8,0.96051]
[1646918035274,1.42189513,2605.2,2604.7,3.8421]
[1646918035275,0.94762355,2604.9,2604.7,3.8421]
[1646918035473,1.90827355,2604.9,2604.7,3.8421]
[1646918036075,0.96065,2604.9,2604.7,3.8421]
[1646918036273,0.96417947,2604.9,2604.7,3.8421]
[1646918036474,0.96417947,2604.9,2604.8,1.92119]
[1646918037281,0.96065,2604.9,2604.8,1.92119]
[1646918037927,0.00352945,2605.0,2604.8,1.92119]
[1646918038528,1.90819355,2605.1,2604.8,1.92119]
[1646918038825,1.90819355,2605.1,2604.8,2.88177]
[1646918038826,0.00352597,2605.0,2604.8,2.88177]
[1646918039630,1.90819355,2605.1,2604.8,2.88177]
[1646918039831,0.95114952,2605.0,2604.8,1.93680203]
[1646918040026,2.87251952,2605.0,2604.8,1.93680203]
[1646918040826,0.94762355,2605.0,2604.8,1.9356941]
[1646918041126,0.95114952,2605.0,2604.8,1.9356941]
[1646918041976,0.94762355,2605.0,2604.8,1.9356941]
[1646918042382,0.94762355,2605.0,2604.8,0.01561203]
[1646918042383,0.94762355,2604.9,2604.8,0.01561203]
[1646918042581,0.94762355,2604.9,2604.8,0.00890116]
[1646918042582,3.884,2604.9,2604.8,0.00890116]
[1646918042781,1.553,2604.9,2604.8,0.00890116]
[1646918043181,0.553,2604.9,2604.8,0.00890116]
[1646918044591,0.937,2604.9,2604.8,0.00890116]
[1646918044781,2.35889513,2604.9,2604.8,0.00890116]
[1646918045027,2.35889513,2604.9,2604.8,0.01591421]
[1646918045625,0.937,2604.9,2604.8,0.01591421]
[1646918046225,2.35889513,2604.9,2604.8,0.01591421]
[1646918046826,0.937,2604.9,2604.8,0.01591421]
[1646918048234,2.35889513,2604.9,2604.8,0.01591421]
[1646918049677,1.97489513,2604.9,2604.8,0.01591421]
[1646918051280,0.553,2604.9,2604.8,0.01591421]
[1646918052634,4.437,2604.9,2604.8,0.01591421]
[1646918052836,6.7661,2604.9,2604.8,0.01591421]
[1646918053431,6.7661,2604.9,2603.9,5.41615809]
[1646918053633,0.94743337,2604.2,2603.9,5.41615809]
[1646918053833,0.94743337,2604.2,2603.9,5.16615809]
[1646918054235,0.94743337,2604.1,2603.9,5.16615809]
[1646918054633,0.94743337,2604.0,2603.9,5.16615809]
[1646918056285,1.90846337,2604.1,2603.9,5.16615809]
[1646918056683,0.94743337,2604.0,2603.9,3.24429809]
[1646918056980,3.5,2604.0,2603.9,3.24429809]
[1646918057381,4.5,2604.0,2603.9,3.24429809]
[1646918058180,1.0,2604.0,2603.9,3.24429809]
[1646918058581,1.90885745,2604.1,2603.9,3.24429809]
[1646918058884,1.90885745,2604.1,2603.8,1.04031918]
[1646918059280,1.90885745,2604.1,2603.9,0.08371524]
[1646918059480,0.96103,2604.1,2603.9,0.08371524]
[1646918060122,0.96103,2604.1,2603.9,0.09798012]
[1646918060123,0.02246278,2604.0,2603.9,0.09798012]
[1646918064379,0.96086,2604.3,2603.9,0.08371524]
[1646918065382,0.97034193,2604.4,2603.9,1.04456524]
[1646918065584,0.02251448,2604.4,2604.0,0.08349666]
[1646918066183,1.42115005,2605.0,2604.1,1.59628831]
[1646918066184,0.94782745,2604.8,2604.1,1.59628831]
[1646918066382,0.94782745,2604.9,2604.5,1.9210173]
[1646918066581,0.00380455,2604.6,2604.4,1.9210145]
[1646918066780,0.00380455,2604.6,2604.4,2.2210145]
[1646918067382,0.94782745,2604.9,2604.4,2.2210145]
[1646918067630,0.0038048,2604.6,2604.5,1.9213]
[1646918068034,0.95163225,2604.6,2604.5,1.9213]
[1646918068534,0.94782745,2604.6,2604.5,1.9213]
[1646918070832,0.94782745,2604.6,2604.4,1.9213]
[1646918071290,0.94782745,2604.6,2604.4,5.21540381]
[1646918072376,0.95132702,2604.6,2604.4,3.29410381]
[1646918072779,0.00349957,2604.6,2604.4,3.29410381]
[1646918073380,0.94782745,2604.7,2604.4,3.29410381]
[1646918073582,0.00349957,2604.6,2604.4,3.29410381]
[1646918074581,0.94782745,2604.7,2604.4,3.29410381]
[1646918074782,0.00349957,2604.6,2604.4,3.29410381]
[1646918075224,0.00349957,2604.6,2604.5,0.01412512]
[1646918075726,0.94782745,2604.7,2604.5,0.01412512]
[1646918076124,0.9513612,2604.7,2604.5,0.01412512]
[1646918076329,0.94782745,2604.6,2604.5,0.01412512]
[1646918077731,0.9513612,2604.7,2604.5,0.01412512]
[1646918078130,0.94782745,2604.7,2604.5,0.01412512]
[1646918078331,0.95136117,2604.7,2604.5,0.01326852]
[1646918079477,0.94782745,2604.7,2604.5,0.01326852]
[1646918079676,0.95135617,2604.7,2604.5,0.01326852]
[1646918079878,0.00352872,2604.7,2604.5,0.01326852]
[1646918080677,1.90851745,2604.8,2604.5,0.01326852]
[1646918080878,0.00352872,2604.7,2604.5,0.01326852]
[1646918081483,0.00352872,2604.7,2604.5,3.51326852]
[1646918081879,1.90851745,2604.8,2604.5,3.51326852]
[1646918082081,0.0021442,2604.7,2604.5,3.51326852]
[1646918082637,4.44997165,2604.7,2604.5,3.51326852]
[1646918082836,0.94782745,2604.6,2604.5,3.51326852]
[1646918083239,4.92115005,2604.6,2604.5,3.51326852]
[1646918083437,3.5,2604.6,2604.5,3.51326852]
[1646918083637,4.5,2604.6,2604.5,3.51326852]
[1646918083838,4.5,2604.6,2604.5,0.01326852]
[1646918086141,4.92903249,2604.6,2604.5,0.01326852]
[1646918086591,1.04503249,2604.6,2604.5,0.01326852]
[1646918086787,1.46618254,2604.6,2604.5,0.01326852]
[1646918086989,0.04503249,2604.6,2604.5,0.01326852]
[1646918088994,3.54503249,2604.6,2604.5,0.01326852]
[1646918089294,1.04503249,2604.6,2604.5,0.01326852]
[1646918089691,0.04503249,2604.6,2604.5,0.01326852]
[1646918092251,3.61548281,2604.7,2604.5,0.01326852]
[1646918092451,0.94850294,2604.6,2604.5,0.01326852]
[1646918093556,0.94850294,2604.6,2604.5,0.00748214]
[1646918093557,5.35777082,2604.6,2604.5,0.00748214]
[1646918093789,6.30657232,2604.6,2604.5,0.00748214]
[1646918095381,6.30657232,2604.6,2604.5,0.01513277]
[1646918096385,4.884,2604.6,2604.5,0.01513277]
[1646918097185,6.30713297,2604.6,2604.5,0.01513277]
[1646918098636,2.42313297,2604.6,2604.5,0.01513277]
[1646918098834,1.7666,2604.7,2604.5,0.01513277]
[1646918098835,4.00000387,2604.7,2604.5,0.01513277]
[1646918099639,2.5768709,2604.7,2604.5,0.01513277]
[1646918099836,1.5748,2604.7,2604.5,0.01513277]
[1646918100036,2.1928709,2604.7,2604.5,0.01513277]
[1646918100237,1.5768709,2604.7,2604.5,0.01513277]
[1646918100437,1.42313297,2604.6,2604.5,0.01513277]
[1646918100638,1.80713297,2604.6,2604.5,0.01513277]
[1646918100836,5.30713297,2604.6,2604.5,0.01513277]
[1646918101282,6.30713297,2604.6,2604.5,0.01513277]
[1646918101481,4.884,2604.6,2604.5,0.01513277]
[1646918101882,1.384,2604.6,2604.5,0.01513277]
[1646918102080,0.96092,2604.3,2603.9,3.48853125]
[1646918102283,1.91006691,2604.3,2603.9,3.48853125]
[1646918102480,3.34555897,2604.6,2603.9,3.48853125]
[1646918102481,0.37087195,2604.2,2604.1,0.08070165]
[1646918103284,0.37087195,2604.2,2604.0,3.5]
[1646918103884,1.32001886,2604.2,2604.0,3.5]
[1646918104483,1.32001886,2604.2,2604.0,3.45]
[1646918104889,0.37087195,2604.2,2604.0,3.45]
[1646918105332,1.32001886,2604.2,2604.0,3.45]
[1646918105932,0.96107,2604.1,2603.8,3.5]
[1646918106132,0.96107,2604.1,2603.8,3.50369898]
[1646918106333,0.37087195,2604.0,2603.8,3.50369898]
[1646918106933,0.37087195,2604.0,2603.8,3.5]
[1646918107340,0.37087195,2604.0,2603.8,3.50369887]
[1646918108136,0.37087195,2604.0,2603.8,3.5]
[1646918108543,0.37087195,2604.0,2603.8,3.50369887]
[1646918109184,0.37087195,2604.0,2603.9,1.69617081]
[1646918109585,1.32001886,2604.0,2603.9,1.69617081]
[1646918110188,0.37087195,2604.0,2603.9,1.69617081]
[1646918110686,1.37325026,2604.0,2603.9,1.69617081]
[1646918111087,5.06525026,2604.0,2603.9,1.69617081]
[1646918111287,6.06525026,2604.0,2603.9,1.69617081]
[1646918111489,2.56525026,2604.0,2603.9,1.69617081]
[1646918112744,1.56287195,2604.0,2603.9,1.69617081]
[1646918112941,1.37087195,2604.0,2603.9,1.69617081]
[1646918113142,0.37087195,2604.0,2603.9,1.69617081]
[1646918114041,0.37087195,2604.0,2603.9,0.8512922]
[1646918114442,0.37087195,2604.0,2603.9,1.69617081]
[1646918114642,2.29299195,2604.0,2603.9,1.69617081]
[1646918115041,3.24213886,2604.0,2603.9,1.69617081]
[1646918115245,4.24213886,2604.0,2603.9,1.70832851]
[1646918118688,3.29299195,2604.0,2603.9,1.70832851]
[1646918118887,4.24213886,2604.0,2603.9,1.70832851]
[1646918119088,2.29299195,2604.0,2603.9,1.70832851]
[1646918119287,3.29299195,2604.0,2603.9,1.70832851]
[1646918119488,2.29299195,2604.0,2603.9,1.70832851]
[1646918119789,3.29299195,2604.0,2603.9,1.69617081]
[1646918120030,2.29299195,2604.0,2603.9,1.69617081]
[1646918120233,3.29299195,2604.0,2603.9,1.69617081]
[1646918120435,2.29299195,2604.0,2603.9,1.69617081]
[1646918120634,3.29299195,2604.0,2603.9,1.69617081]
[1646918120832,2.29299195,2604.0,2603.9,1.69617081]
[1646918121034,1.37087195,2604.0,2603.9,1.69617081]
[1646918121234,0.37087195,2604.0,2603.9,1.69617081]
[1646918123239,0.37087195,2604.0,2603.9,2.08137232]
[1646918124482,0.37087195,2604.0,2603.9,1.78137232]
[1646918124687,0.37087195,2604.0,2603.9,1.69617081]
[1646918124688,1.32001886,2604.0,2603.9,1.69617081]
[1646918126282,1.32001886,2604.0,2603.9,1.78355323]
[1646918126283,0.37087195,2604.0,2603.9,1.78355323]
[1646918128944,0.36874177,2604.0,2603.9,2.08355323]
[1646918129343,0.36874177,2604.0,2603.9,1.78355323]
[1646918129542,0.36874177,2604.0,2603.9,2.08355323]
[1646918129942,0.36874177,2604.0,2603.9,2.0985054]
[1646918130145,0.36874177,2604.0,2603.9,1.7985054]
[1646918130948,0.36874177,2604.0,2603.9,3.60785475]
[1646918132290,0.02446468,2604.1,2603.9,6.9775877]
[1646918132592,0.02446468,2604.1,2604.0,1.59673177]
[1646918132991,0.02446468,2604.1,2604.0,3.29290258]
[1646918134392,0.94914691,2604.4,2604.0,3.29290258]
[1646918134594,0.94914691,2604.4,2604.1,1.87767873]
[1646918134792,0.94914691,2604.4,2604.2,3.38872257]
[1646918136048,0.97161358,2604.5,2604.2,3.38872257]
[1646918136550,0.02246667,2604.5,2604.2,3.38872257]
[1646918136749,0.02246667,2604.5,2604.3,1.59666932]
[1646918137152,0.02246667,2604.5,2604.2,4.64935257]
[1646918137350,0.02246667,2604.5,2604.3,1.5837624]
[1646918137954,0.94914691,2604.9,2604.4,14.0]
[1646918138153,0.94914691,2605.1,2604.4,0.8512922]
[1646918138354,0.94914691,2605.1,2604.4,7.23198711]
[1646918138553,0.94914691,2605.1,2604.4,6.23198711]
[1646918138801,0.94914691,2605.1,2604.4,21.84319391]
[1646918138986,0.94914691,2605.1,2604.4,11.07359391]
[1646918139186,0.94914691,2605.1,2605.0,1.06980522]
[1646918139385,0.94914691,2605.2,2605.0,1.06980522]
[1646918139585,0.94914691,2605.2,2605.0,2.33024052]
[1646918139786,0.85317606,2605.2,2605.0,2.33024052]
[1646918140791,2.57588897,2605.6,2605.0,2.33024052]
[1646918140989,2.38408897,2605.6,2605.1,0.08136988]
[1646918141391,2.38408897,2605.6,2605.1,0.38136988]
[1646918141587,0.96037,2605.6,2605.1,0.38136988]
[1646918141988,2.38408897,2605.6,2605.1,0.38136988]
[1646918142188,1.42753093,2605.5,2605.1,0.08136988]
[1646918142388,0.96063,2605.4,2605.1,0.08136988]
[1646918143441,0.96444202,2605.4,2605.2,0.8512922]
[1646918143642,0.96444202,2605.4,2605.2,1.69617081]
[1646918143944,0.96444202,2605.4,2605.2,1.99617081]
[1646918144341,0.96063,2605.4,2605.2,1.99617081]
[1646918144541,0.96444199,2605.4,2605.2,1.99617081]
[1646918145141,0.96444199,2605.4,2605.2,2.01096772]
[1646918145542,0.96063,2605.4,2605.2,1.71096772]
[1646918145841,0.96444199,2605.4,2605.2,1.71096772]
[1646918146691,0.96063,2605.4,2605.2,1.71096772]
[1646918147090,0.96444199,2605.4,2605.2,1.71096772]
[1646918147894,0.96063,2605.4,2605.2,1.71096772]
[1646918148094,0.96444199,2605.4,2605.2,1.71096772]
[1646918148894,0.94677721,2605.3,2605.2,0.01479691]
[1646918149796,1.9112192,2605.4,2605.2,0.01479691]
[1646918150038,1.9112192,2605.4,2604.7,0.06837926]
[1646918150039,3.84207,2605.0,2604.7,0.06837926]
[1646918150438,3.84207,2605.0,2604.5,0.90576425]
[1646918150439,3.84207,2605.0,2604.5,0.97635854]
[1646918150639,3.84207,2605.0,2604.3,0.36012728]
[1646918150838,3.84207,2605.0,2604.3,0.06012728]
[1646918151238,3.84207,2605.0,2604.3,1.40456258]
[1646918151541,1.92078,2605.0,2604.4,0.07047469]
[1646918151742,0.00369802,2604.8,2604.4,0.07047469]
[1646918151938,0.00369802,2604.8,2604.5,1.01317538]
[1646918152342,0.00369802,2604.8,2604.6,0.059875]
[1646918152538,1.92450802,2604.8,2604.6,0.059875]
[1646918152742,1.92081,2604.8,2604.6,0.059875]
[1646918152942,1.92450802,2604.8,2604.6,0.059875]
[1646918153143,1.92450802,2604.8,2604.5,0.3]
[1646918153343,1.92450802,2604.8,2604.4,0.06516454]
[1646918153800,2.88508802,2604.8,2604.4,0.06516454]
[1646918153988,2.88508802,2604.8,2604.2,0.07444027]
[1646918153989,1.92126,2604.7,2604.2,0.07444027]
[1646918154190,1.92494763,2604.7,2604.6,1.69617081]
[1646918155088,1.92126,2604.7,2604.6,1.69617081]
[1646918162188,1.98519072,2604.7,2604.6,1.69617081]
[1646918163694,1.92126,2604.7,2604.6,1.69617081]
[1646918166642,1.9747135,2604.7,2604.6,1.69617081]
[1646918170895,1.92126,2604.7,2604.6,1.69617081]
[1646918173644,1.92126,2604.7,2604.6,0.84487861]
[1646918174042,1.92126,2604.7,2604.6,1.69467998]
[1646918175547,0.96076,2604.6,2604.4,5.052e-05]
[1646918175743,2.10325432,2604.6,2604.4,5.052e-05]
[1646918175943,2.48725432,2604.6,2604.4,5.052e-05]
[1646918176692,0.96084,2604.5,2604.0,1.59663365]
[1646918176895,2.87237432,2604.5,2604.0,1.59663365]
[1646918177092,0.96082,2604.3,2604.2,0.00354014]
[1646918177995,1.92163,2604.3,2604.0,1.59663365]
[1646918178198,2.88244,2604.3,2604.1,0.00354002]
[1646918179096,2.88244,2604.3,2604.0,1.59663365]
[1646918179299,2.88244,2604.3,2604.1,0.00354044]
[1646918180239,2.88244,2604.3,2604.0,1.59666374]
[1646918180240,2.88244,2604.3,2603.9,0.1918]
[1646918180440,0.9609,2604.2,2603.9,0.1918]
[1646918180640,0.9609,2604.2,2604.1,0.00354044]
[1646918180844,1.67415946,2604.2,2603.9,0.1918]
[1646918181038,2.88265,2604.1,2603.9,0.17262001]
[1646918183045,2.88265,2604.1,2603.5,0.06145829]
[1646918184692,2.88265,2604.1,2603.3,0.37595422]
[1646918185093,2.88265,2604.1,2604.0,0.01104804]
[1646918186495,3.59590946,2604.1,2604.0,0.01104804]
[1646918186895,2.88265,2604.1,2604.0,0.01104804]
[1646918187744,3.59590946,2604.1,2604.0,0.01104804]
[1646918187943,2.88265,2604.1,2604.0,0.01104804]
[1646918189949,7.09590946,2604.1,2604.0,0.01104804]
[1646918190348,3.59590946,2604.1,2604.0,0.01104804]
[1646918190948,7.09590946,2604.1,2604.0,0.01104804]
[1646918191397,8.26470946,2604.1,2604.0,0.01104804]
[1646918191988,8.45670946,2604.1,2604.0,0.01104804]
[1646918192490,7.74345,2604.1,2604.0,0.01104804]
[1646918192692,8.45591474,2604.1,2603.8,0.0036886]
[1646918192896,0.96099,2603.9,2603.8,0.0036886]
[1646918193295,0.96099,2604.0,2603.8,0.0036886]
[1646918193496,0.96099,2604.0,2603.3,0.01475747]
[1646918193497,0.96099,2604.0,2603.3,0.07700577]
[1646918193692,0.96099,2604.0,2603.4,0.553]
[1646918193900,0.96099,2604.0,2603.7,0.00368858]
[1646918194794,0.96099,2604.0,2603.4,1.51276837]
[1646918195042,0.96099,2604.0,2603.7,0.00352351]
[1646918195938,0.96099,2604.0,2603.4,0.3]
[1646918196139,0.96099,2604.0,2603.7,0.00352351]
[1646918197138,0.96099,2604.0,2603.3,0.07700577]
[1646918197338,0.96099,2604.0,2603.7,0.00352351]
[1646918198345,0.96099,2604.0,2603.3,0.07700577]
[1646918198545,0.96099,2604.0,2603.7,0.00354381]
[1646918199496,0.96099,2604.0,2603.3,0.07700577]
[1646918199693,0.96099,2604.0,2603.3,0.63000577]
[1646918199895,0.96099,2604.0,2603.7,0.00354381]
[1646918200701,0.96099,2604.0,2603.3,0.07416614]
[1646918200904,0.07984426,2603.9,2603.4,1.56758573]
[1646918201204,2.00172426,2603.9,2603.7,0.00354381]
[1646918201602,0.07984426,2603.8,2603.7,0.00274381]
[1646918202002,0.07984426,2603.8,2603.4,1.56758573]
[1646918202203,1.04071426,2603.8,2603.4,1.86758573]
[1646918202402,0.07984426,2603.7,2603.5,1.56758573]
[1646918205749,0.07984426,2603.7,2603.5,1.57140332]
[1646918205947,0.07984426,2603.7,2603.6,1.56758573]
[1646918206599,0.07984426,2603.7,2603.5,0.00381759]
[1646918206808,0.07984426,2603.7,2603.2,1.56758573]
[1646918207010,1.04077426,2603.7,2603.5,0.00381755]
[1646918207207,0.07984426,2603.6,2603.5,0.00381755]
[1646918208007,0.07984426,2603.6,2603.2,1.56758573]
[1646918208308,0.07984426,2603.6,2603.4,0.00381762]
[1646918209106,0.07984426,2603.6,2603.2,1.56758573]
[1646918209511,0.07984426,2603.6,2603.4,0.00381765]
[1646918209906,0.07984426,2603.5,2603.4,11.73381765]
[1646918210159,0.71246474,2604.2,2603.4,13.92348381]
[1646918210358,0.07982758,2604.1,2603.5,1.63364355]
[1646918210558,0.07982758,2604.0,2603.6,1.56758573]
[1646918210760,0.07982758,2603.9,2603.6,2.82833573]
[1646918210961,0.07982758,2603.8,2603.7,1.56758573]
[1646918211360,0.07982758,2603.9,2603.7,1.56758573]
[1646918214493,0.07982758,2603.9,2603.8,1.56758573]
[1646918214698,2.00160758,2603.9,2603.6,0.00369163]
[1646918214893,0.07982758,2603.8,2603.6,0.00369163]
[1646918215094,1.04068758,2603.8,2603.5,1.56758573]
[1646918215292,1.04068758,2603.8,2603.6,1.56758573]
[1646918215293,0.07982758,2603.7,2603.6,1.56758573]
[1646918215492,0.07982758,2603.7,2603.6,0.00369158]